bitfinex/quotes_ETHUSD_20250715
["timestamp","ask_amount","ask_price","bid_price","bid_amount"]
[1752541948899,5.155,2986.1,2986.0,4.11256182]
[1752541949599,0.001,2986.1,2986.0,4.27976182]
[1752541949902,5.155,2986.1,2986.0,5.62613436]
[1752541950101,0.001,2986.1,2986.0,5.62613436]
[1752541950507,0.001,2986.1,2986.0,5.59264475]
[1752541951807,5.155,2986.1,2986.0,5.59264475]
[1752541952215,5.155,2986.1,2986.0,2.24368293]
[1752541952504,5.155,2986.1,2986.0,0.1672]
[1752541953163,5.155,2986.1,2985.6,4.76]
[1752541953385,3.34900301,2986.0,2985.7,0.1672]
[1752541953608,8.50390084,2986.1,2985.7,0.1672]
[1752541953780,5.155,2986.1,2985.7,0.1672]
[1752541953978,3.34896861,2986.0,2985.7,0.1672]
[1752541954781,5.155,2986.1,2985.3,0.7979]
[1752541955023,3.34974709,2985.3,2984.8,0.7979]
[1752541955320,5.155,2985.2,2985.0,3.51717731]
[1752541955485,5.155,2985.1,2985.0,3.51717731]
[1752541955685,5.155,2985.1,2985.0,0.1672]
[1752541955886,5.155,2985.1,2985.0,3.51728375]
[1752541956215,5.155,2985.1,2985.0,4.25102944]
[1752541956421,5.155,2985.1,2985.0,0.93374569]
[1752541957323,5.155,2985.1,2985.0,0.1672]
[1752541957715,5.155,2985.1,2984.8,0.7979]
[1752541957891,5.155,2985.1,2984.8,0.9651]
[1752541958222,5.155,2985.1,2984.8,4.31536159]
[1752541958528,5.155,2985.1,2984.8,0.9651]
[1752541959633,8.50497244,2985.1,2984.8,0.1672]
[1752541960424,5.155,2985.1,2984.8,0.1672]
[1752541960937,3.35016241,2985.0,2984.5,0.1672]
[1752541961143,3.35019974,2984.9,2984.5,0.1672]
[1752541961338,5.154,2984.8,2984.3,0.17471726]
[1752541961543,5.154,2984.7,2984.4,0.1672]
[1752541961840,5.154,2984.7,2984.1,0.82970001]
[1752541961841,5.3212,2984.7,2984.2,0.1672]
[1752541962135,3.35060268,2984.6,2984.2,0.1672]
[1752541962699,5.3212,2984.7,2984.2,0.1672]
[1752541962894,3.35083016,2984.4,2984.2,0.1672]
[1752541963122,5.154,2984.3,2984.2,0.1672]
[1752541963905,5.154,2984.3,2984.2,3.51818183]
[1752541964411,0.1672,2984.7,2984.2,4.20531752]
[1752541964614,0.7633,2985.1,2984.5,3.35058176]
[1752541964806,8.50412097,2985.0,2984.5,0.1672]
[1752541965004,8.50412097,2985.0,2984.5,3.5178265]
[1752541965220,5.154,2985.0,2984.5,3.5178265]
[1752541965618,8.50409496,2985.0,2984.5,3.5178265]
[1752541966145,8.50409496,2985.0,2984.5,0.1672]
[1752541966318,5.154,2985.0,2984.5,0.1672]
[1752541966649,10.7633,2985.3,2984.8,3.3502248]
[1752541966849,5.157,2985.2,2984.8,3.5174248]
[1752541967058,5.157,2985.2,2984.8,0.1672]
[1752541967228,5.157,2985.2,2984.8,3.5174402]
[1752541967615,0.8096,2985.7,2985.2,3.3498593]
[1752541967860,5.3222,2985.6,2985.1,0.1672]
[1752541968032,9.2848254,2985.6,2985.1,0.1672]
[1752541968376,5.958,2985.5,2985.1,3.51711836]
[1752541968643,3.34984172,2985.3,2984.7,4.16006272]
[1752541968828,5.158,2985.2,2984.8,3.51749447]
[1752541969445,8.50791414,2985.2,2984.8,0.1672]
[1752541969641,3.35008033,2985.1,2984.5,3.35056779]
[1752541969836,0.1672,2985.1,2984.6,3.51771619]
[1752541970531,0.1672,2985.1,2984.7,3.35041112]
[1752541970842,10.0,2984.7,2984.2,3.35089247]
[1752541971018,5.157,2984.6,2984.1,3.3510742]
[1752541971220,5.157,2984.6,2984.3,3.35086955]
[1752541971749,5.159,2984.5,2984.4,3.35075727]
[1752541972506,5.159,2984.5,2984.3,3.35084239]
[1752541972720,5.159,2984.5,2984.1,3.76667178]
[1752541973460,5.159,2984.5,2984.1,0.41559743]
[1752541973608,5.159,2984.5,2984.2,3.3509717]
[1752541973807,5.159,2984.5,2984.3,3.35086951]
[1752541974308,5.159,2984.5,2984.1,3.35107859]
[1752541974918,5.159,2984.5,2984.1,1e-08]
[1752541975160,3.35092845,2984.3,2984.1,1e-08]
[1752541975462,8.84207468,2984.2,2984.1,1e-08]
[1752541975748,8.50698183,2984.2,2984.1,1e-08]
[1752541978451,18.50698183,2984.2,2984.1,1e-08]
[1752541978954,19.26498183,2984.2,2984.1,1e-08]
[1752541983192,14.10898183,2984.2,2984.1,1e-08]
[1752541983395,19.26998183,2984.2,2984.1,1e-08]
[1752541983699,20.92074697,2984.2,2984.1,1e-08]
[1752541987672,15.75974697,2984.2,2984.1,1e-08]
[1752541987990,20.92074697,2984.2,2984.1,1e-08]
[1752541988668,20.91774697,2984.2,2984.1,1e-08]
[1752541990299,15.75974697,2984.2,2984.1,1e-08]
[1752541990498,20.91874697,2984.2,2984.1,1e-08]
[1752541990692,20.91674697,2984.2,2984.1,1e-08]
[1752541991200,22.92674697,2984.2,2984.0,0.002]
[1752541991411,22.92674697,2984.2,2984.0,1e-08]
[1752541991412,16.91967413,2984.1,2984.0,1e-08]
[1752541991979,22.07867413,2984.1,2984.0,1e-08]
[1752541993177,16.91967413,2984.1,2984.0,1e-08]
[1752541993411,22.07767413,2984.1,2984.0,1e-08]
[1752541994182,14.90967413,2984.1,2984.0,1e-08]
[1752541994723,20.06767413,2984.1,2984.0,1e-08]
[1752541996233,0.1672,2984.1,2984.0,1e-08]
[1752541996391,5.3252,2984.1,2984.0,1e-08]
[1752541996594,8.67629413,2984.1,2984.0,1e-08]
[1752541996902,5.3252,2984.1,2984.0,1e-08]
[1752541997330,15.3252,2984.1,2984.0,1e-08]
[1752541997542,0.1672,2984.1,2984.0,1e-08]
[1752541997720,3.35047717,2984.7,2984.1,3.35109413]
[1752541998044,5.16,2984.6,2984.2,4.17688183]
[1752541998348,15.16,2984.5,2984.3,3.35082954]
[1752541998757,15.16,2984.5,2984.2,0.8259]
[1752541998965,0.1672,2984.6,2984.3,3.35076326]
[1752541999114,5.16,2984.5,2984.2,0.8259]
[1752541999451,5.16,2984.5,2984.2,4.17683366]
[1752541999651,5.16,2984.5,2984.3,3.35084762]
[1752542000073,5.16,2984.5,2984.4,3.35075727]
[1752542000241,5.16,2984.5,2984.2,4.17683416]
[1752542000577,5.16,2984.5,2984.2,4.94634494]
[1752542001179,5.158,2984.4,2984.2,4.94634494]
[1752542001853,0.1672,2984.6,2984.3,3.35086955]
[1752542002055,5.157,2984.5,2984.2,4.94633588]
[1752542002874,5.157,2984.5,2984.2,1.59541078]
[1752542003077,8.50771098,2984.5,2984.1,0.1672]
[1752542003232,0.1672,2984.2,2984.0,1e-08]
[1752542003431,5.16,2984.1,2984.0,1e-08]
[1752542003863,8.51109413,2984.1,2984.0,1e-08]
[1752542004375,5.16,2984.1,2984.0,1e-08]
[1752542004562,10.0,2984.5,2984.1,0.8046]
[1752542004761,5.159,2984.4,2984.1,4.56297137]
[1752542004952,5.159,2984.4,2984.1,4.73017137]
[1752542005154,5.159,2984.4,2984.1,1.37913705]
[1752542005353,10.0,2984.5,2984.1,4.7302256]
[1752542005581,5.16,2984.4,2984.1,1.37913705]
[1752542005780,5.16,2984.4,2984.1,4.73021804]
[1752542006100,10.0,2984.5,2984.2,3.35096549]
[1752542006282,10.0,2984.5,2984.1,1.37913705]
[1752542006283,5.159,2984.4,2984.1,4.73017558]
[1752542006654,5.159,2984.4,2984.3,3.35086955]
[1752542007244,5.159,2984.4,2984.3,4.15895732]
[1752542009000,5.159,2984.4,2984.3,0.80808777]
[1752542009208,5.159,2984.4,2984.3,3.35086955]
[1752542010267,5.159,2984.4,2984.0,3.35111508]
[1752542010461,5.159,2984.4,2984.1,3.3510275]
[1752542010660,5.159,2984.4,2984.1,3.5182275]
[1752542010857,5.158,2984.3,2984.1,3.5182275]
[1752542011405,8.50892965,2984.3,2984.0,1e-08]
[1752542011706,5.3252,2984.3,2984.0,1e-08]
[1752542012002,5.3252,2984.3,2984.0,3.35114695]
[1752542012408,5.3252,2984.3,2984.0,1e-08]
[1752542013623,8.67608544,2984.3,2984.0,1e-08]
[1752542014205,3.35109413,2984.1,2984.0,1e-08]
[1752542014505,1.36987426,2984.3,2984.0,0.81920001]
[1752542014677,5.156,2984.2,2984.0,0.81920001]
[1752542015405,0.1672,2984.7,2984.2,3.35088207]
[1752542015627,10.0,2984.5,2984.3,3.35081683]
[1752542015937,5.157,2984.4,2984.1,0.1672]
[1752542016083,5.157,2984.4,2984.1,3.51823468]
[1752542017079,5.157,2984.4,2984.1,0.1672]
[1752542017325,5.3242,2984.4,2984.0,4.17035699]
[1752542018117,5.3242,2984.4,2984.1,3.35108962]
[1752542018320,5.3242,2984.4,2984.0,4.1704042]
[1752542018689,5.3242,2984.4,2984.0,0.81920001]
[1752542019018,5.3242,2984.4,2984.1,3.35104244]
[1752542019524,5.3242,2984.4,2984.0,4.17035827]
[1752542019726,5.3242,2984.4,2984.0,0.81920001]
[1752542020123,5.3242,2984.4,2984.1,3.35102473]
[1752542020328,5.3242,2984.4,2984.0,4.17036912]
[1752542020695,5.3242,2984.4,2984.2,3.35091742]
[1752542021431,10.0,2984.7,2984.2,3.35091742]
[1752542021616,10.1672,2984.7,2984.4,3.35066179]
[1752542021813,5.156,2984.6,2984.4,3.35066179]
[1752542022203,15.156,2984.6,2984.5,3.35064499]
[1752542022623,5.156,2984.6,2984.5,3.35064499]
[1752542022826,8.038,2984.8,2984.7,3.35042047]
[1752542023032,13.194,2984.8,2984.7,3.35042047]
[1752542024092,8.038,2984.8,2984.7,3.35042047]
[1752542024293,13.194,2984.8,2984.7,4.09565579]
[1752542025281,13.194,2984.8,2984.6,4.10187665]
[1752542025565,13.194,2984.8,2984.0,0.55000001]
[1752542025566,13.194,2984.8,2984.4,4.12452524]
[1752542025730,13.3612,2984.8,2984.2,0.1672]
[1752542025926,3.35075046,2984.5,2984.0,1e-08]
[1752542026156,6.44297505,2984.4,2984.0,3.35114953]
[1752542027426,6.44297505,2984.4,2984.1,3.35098857]
[1752542027427,6.1079,2984.4,2984.1,3.35098857]
[1752542027632,5.3232,2984.4,2984.2,3.35092025]
[1752542027846,5.3232,2984.4,2984.0,3.35117602]
[1752542028048,5.3232,2984.4,2984.1,3.35109413]
[1752542028261,5.156,2984.3,2984.2,3.35098183]
[1752542028568,0.1672,2984.4,2984.3,3.35086955]
[1752542028768,5.156,2984.4,2984.2,3.51813264]
[1752542028972,5.156,2984.4,2984.2,0.1672]
[1752542029172,10.1672,2984.7,2984.3,0.7538]
[1752542029469,5.156,2984.6,2984.5,3.35064499]
[1752542030650,8.038,2984.8,2984.7,3.35042047]
[1752542030861,0.001,2985.0,2984.9,3.35019598]
[1752542031036,5.157,2985.0,2984.9,4.32769793]
[1752542031369,5.157,2985.0,2984.9,4.29419598]
[1752542032468,0.7613,2984.9,2984.0,1e-08]
[1752542032658,5.157,2985.0,2984.0,1e-08]
[1752542032659,3.35067957,2984.5,2984.0,1e-08]
[1752542032855,3.35053273,2984.6,2984.0,1e-08]
[1752542032856,5.213,2984.4,2984.0,3.351172]
[1752542033244,5.213,2984.4,2984.0,1e-08]
[1752542033440,5.213,2984.4,2984.0,3.35117088]
[1752542033645,8.56378439,2984.4,2984.0,0.76100001]
[1752542034947,5.213,2984.4,2984.0,4.11218565]
[1752542035147,5.213,2984.4,2984.0,0.76100001]
[1752542035549,8.56379121,2984.4,2984.0,0.76100001]
[1752542036086,5.213,2984.4,2984.0,0.76100001]
[1752542036789,5.190599,2984.4,2984.0,0.76100001]
[1752542036983,8.54135828,2984.4,2984.0,0.76100001]
[1752542037188,8.54136726,2984.4,2984.0,0.76100001]
[1752542039090,0.7977,2984.3,2984.0,1e-08]
[1752542039385,8.5570477,2984.2,2984.0,1e-08]
[1752542039590,5.206,2984.2,2984.0,1e-08]
[1752542039956,3.35109413,2984.1,2984.0,1e-08]
[1752542040396,8.55698753,2984.2,2984.0,1e-08]
[1752542040557,3.35109413,2984.1,2984.0,1e-08]
[1752542040752,5.206,2984.2,2984.0,1e-08]
[1752542042060,8.55701833,2984.2,2984.0,1e-08]
[1752542042471,5.206,2984.2,2984.0,1e-08]
[1752542042675,5.203,2984.1,2984.0,1.14257512]
[1752542042900,8.2072,2984.7,2984.2,3.35095613]
[1752542043217,8.04,2984.7,2984.6,3.35053273]
[1752542043371,13.244,2984.7,2984.6,4.17603273]
[1752542043906,13.244,2984.7,2984.5,0.1672]
[1752542044385,0.1672,2984.6,2984.3,3.35084524]
[1752542044720,5.204,2984.5,2984.2,3.35093106]
[1752542046883,5.204,2984.5,2984.1,3.35105158]
[1752542047284,5.204,2984.5,2984.0,3.51836513]
[1752542047542,5.204,2984.5,2984.1,3.35102354]
[1752542047690,5.204,2984.5,2984.0,3.51839265]
[1752542048301,5.204,2984.5,2984.2,3.35092107]
[1752542048609,0.1672,2984.8,2984.5,3.35064499]
[1752542048917,0.1672,2984.8,2984.2,0.85413137]
[1752542048918,5.2,2984.7,2984.2,0.85413137]
[1752542049089,5.2,2984.7,2984.4,3.35068778]
[1752542049510,5.2,2984.7,2984.3,3.35084835]
[1752542049716,5.2,2984.7,2984.2,3.51808746]
[1752542050053,5.2,2984.7,2984.4,3.35075308]
[1752542050182,5.2,2984.7,2984.2,0.1672]
[1752542050398,8.55043514,2984.7,2984.2,3.51811686]
[1752542050591,5.2,2984.7,2984.2,0.1672]
[1752542051211,8.55047291,2984.7,2984.2,0.1672]
[1752542051583,5.2,2984.7,2984.3,3.35086799]
[1752542052930,8.55043451,2984.7,2984.2,3.51813313]
[1752542053228,5.2,2984.7,2984.3,3.35086462]
[1752542053592,8.55046467,2984.7,2984.2,3.51812431]
[1752542053985,5.2,2984.7,2984.2,3.51812431]
[1752542054186,8.55043151,2984.7,2984.2,3.51812431]
[1752542054630,0.7805,2984.5,2984.2,0.1672]
[1752542054817,5.195,2984.4,2984.2,0.1672]
[1752542055787,5.195,2984.4,2984.3,3.35086955]
[1752542057205,0.8173,2984.7,2984.3,0.68691244]
[1752542057544,5.189,2984.6,2984.4,3.35075727]
[1752542057736,5.189,2984.6,2984.5,3.35064499]
[1752542057949,0.1672,2984.8,2984.6,0.7987]
[1752542058093,0.001,2985.0,2984.9,3.35019598]
[1752542058292,5.193,2985.0,2984.9,3.35019598]
[1752542062611,0.001,2985.0,2984.9,4.57439992]
[1752542062955,5.187,2985.0,2984.9,5.55469992]
[1752542063640,5.187,2985.0,2984.9,4.19159992]
[1752542063847,5.187,2985.0,2984.9,3.51739598]
[1752542064014,5.187,2985.0,2984.9,0.1672]
[1752542064209,5.187,2985.0,2984.9,3.51739598]
[1752542064412,5.187,2985.0,2984.2,3.35090962]
[1752542064413,5.9787,2985.0,2984.2,3.35090962]
[1752542064625,0.1672,2984.8,2984.2,3.51810962]
[1752542064856,4.7520724,2984.9,2984.0,0.1747683]
[1752542064857,3.35072092,2984.5,2984.0,0.1747683]
[1752542065158,5.191,2984.4,2984.0,3.5258886]
[1752542065732,5.191,2984.4,2984.1,3.35108726]
[1752542065950,5.191,2984.4,2984.0,3.52592004]
[1752542066118,5.191,2984.4,2984.0,0.1747683]
[1752542066318,5.191,2984.4,2984.0,3.52591541]
[1752542066515,0.1672,2984.5,2984.2,3.35089046]
[1752542066751,0.832,2984.8,2984.4,3.35075727]
[1752542066911,5.3572,2984.7,2984.3,3.35082237]
[1752542067360,0.1672,2984.7,2984.2,0.1672]
[1752542067657,5.19,2984.6,2984.5,3.35064499]
[1752542067812,0.1672,2984.9,2984.7,3.35040851]
[1752542068019,5.189,2984.8,2984.5,3.35057899]
[1752542068219,5.189,2984.8,2984.4,0.1672]
[1752542068824,0.1672,2984.7,2984.2,3.51816867]
[1752542069025,5.189,2984.6,2984.3,3.35086955]
[1752542069336,0.001,2984.4,2984.3,3.35086955]
[1752542069538,5.191,2984.4,2984.3,3.35086955]
[1752542070258,0.001,2984.4,2984.3,3.35086955]
[1752542070419,5.191,2984.4,2984.3,3.35086955]
[1752542071655,5.191,2984.4,2984.2,3.51815084]
[1752542072259,5.191,2984.4,2984.2,0.1672]
[1752542073137,5.191,2984.4,2984.3,3.35086955]
[1752542074343,5.191,2984.4,2984.2,0.1672]
[1752542074854,5.191,2984.4,2984.0,3.90120313]
[1752542074855,5.191,2984.4,2984.3,3.35086955]
[1752542075033,0.001,2984.4,2984.3,3.35086955]
[1752542075233,5.184,2984.4,2984.3,3.35086955]
[1752542076861,5.184,2984.4,2984.2,3.350972]
[1752542077070,5.184,2984.4,2984.0,0.55000001]
[1752542077841,5.184,2984.4,2984.0,3.90119849]
[1752542078164,5.184,2984.4,2984.1,3.35109053]
[1752542078983,5.184,2984.4,2984.2,3.35089084]
[1752542079188,5.184,2984.4,2984.3,3.35086955]
[1752542079705,5.184,2984.4,2984.2,3.35095368]
[1752542080148,5.184,2984.4,2984.1,3.35105333]
[1752542080559,5.184,2984.4,2984.2,3.35095937]
[1752542081642,5.184,2984.4,2984.3,3.35086955]
[1752542081842,5.184,2984.4,2984.2,3.35092458]
[1752542082083,5.174,2984.3,2984.2,3.35087367]
[1752542082382,0.001,2984.4,2984.3,4.72696955]
[1752542082597,5.175,2984.4,2984.3,4.72696955]
[1752542084847,5.175,2984.4,2984.3,4.89416955]
[1752542086077,5.174,2984.4,2984.3,4.92767824]
[1752542086286,0.001,2984.4,2984.3,4.92767824]
[1752542086582,0.001,2984.4,2984.3,6.79577997]
[1752542086880,0.001,2984.4,2984.3,6.76227128]
[1752542087281,0.001,2985.0,2984.7,0.55]
[1752542087496,0.001,2985.0,2984.9,3.90019598]
[1752542087719,5.173,2985.0,2984.9,4.06739598]
[1752542087859,0.001,2985.0,2984.9,5.6404664]
[1752542088060,0.001,2985.0,2984.9,5.67396835]
[1752542088399,0.001,2985.6,2985.5,3.89952269]
[1752542088696,5.173,2985.6,2985.5,4.06672269]
[1752542091598,5.173,2985.6,2985.5,0.1672]
[1752542091783,5.9336,2985.6,2985.5,0.1672]
[1752542091971,5.9336,2985.6,2985.2,0.1672]
[1752542092469,5.9336,2985.6,2985.3,3.34968457]
[1752542093306,5.9336,2985.6,2985.2,3.51699151]
[1752542094097,5.9336,2985.6,2985.3,3.34967857]
[1752542094296,5.9336,2985.6,2985.3,3.34974709]
[1752542094703,0.7616,2985.6,2985.2,0.1672]
[1752542094862,5.168,2985.5,2985.3,3.34967738]
[1752542095064,5.168,2985.5,2985.4,3.34963488]
[1752542097077,5.168,2985.5,2985.3,3.34967848]
[1752542097277,5.168,2985.5,2985.4,3.34963488]
[1752542099013,0.001,2985.6,2985.5,3.34952269]
[1752542099187,5.161,2985.6,2985.5,3.34952269]
[1752542099612,5.161,2985.6,2985.4,3.5167763]
[1752542099773,5.161,2985.6,2985.4,3.51677862]
[1752542100615,5.161,2985.6,2985.4,0.1672]
[1752542100822,5.161,2985.6,2985.1,3.34988453]
[1752542101147,5.161,2985.6,2985.2,0.1672]
[1752542101305,8.51042317,2985.6,2985.2,0.1672]
[1752542101831,5.161,2985.6,2985.2,3.51705261]
[1752542103030,5.161,2985.6,2985.3,3.34973154]
[1752542103329,5.161,2985.6,2985.4,3.34961088]
[1752542103988,0.001,2985.6,2985.5,3.34952269]
[1752542104229,5.16,2985.5,2985.4,3.34958064]
[1752542104436,0.001,2985.6,2985.5,3.34952269]
[1752542104654,5.161,2985.6,2985.5,3.34952269]
[1752542104960,5.161,2985.6,2985.5,3.89952269]
[1752542105294,5.161,2985.6,2985.5,4.66242269]
[1752542106432,0.001,2985.6,2985.5,4.69591791]
[1752542106654,0.001,2985.6,2985.5,5.58585299]
[1752542106808,0.001,2985.6,2985.5,5.55235777]
[1752542108644,0.001,2985.6,2985.5,15.55235777]
[1752542109047,1e-08,2985.6,2985.5,15.55235777]
[1752542109251,0.001,2986.1,2986.0,4.72036182]
[1752542109451,0.001,2986.1,2986.0,15.23806279]
[1752542109652,0.001,2986.1,2986.0,15.20457318]
[1752542109811,0.001,2986.1,2986.0,15.37177318]
[1752542111033,0.001,2986.1,2986.0,5.69450461]
[1752542111238,0.001,2986.1,2986.0,4.87310461]
[1752542111815,0.001,2986.1,2986.0,4.90659422]
[1752542112670,0.001,2986.1,2986.0,4.87310461]
[1752542113440,0.001,2986.1,2986.0,4.90659422]
[1752542113753,0.001,2986.1,2986.0,5.67319422]
[1752542113917,0.001,2986.1,2986.0,15.35046279]
[1752542114118,0.001,2986.1,2986.0,25.31697318]
[1752542117335,0.001,2986.1,2986.0,15.63970461]
[1752542118214,0.001,2986.1,2986.0,25.31697318]
[1752542118948,0.001,2986.2,2986.1,14.71514967]
[1752542119167,0.001,2986.2,2986.1,17.92160856]
[1752542119544,1e-08,2986.2,2986.1,17.92160856]
[1752542120570,0.001,2987.2,2986.6,10.55]
[1752542120781,5.159,2987.2,2986.8,4.06526481]
[1752542121273,0.001,2987.2,2986.8,4.06526481]
[1752542121477,5.159,2987.2,2986.8,4.06526481]
[1752542121972,5.159,2987.2,2986.8,4.09874545]
[1752542122314,0.001,2987.2,2986.8,14.92245769]
[1752542122518,0.001,2987.2,2986.8,14.88897705]
[1752542122650,1e-08,2986.9,2986.8,15.68807705]
[1752542123622,1e-08,2987.2,2987.1,3.89772856]
[1752542123910,1e-08,2987.2,2987.1,25.95734727]
[1752542124048,1e-08,2987.3,2987.2,14.68391649]
[1752542125409,1e-08,2987.5,2987.4,14.68369238]
[1752542125574,1e-08,2987.5,2987.4,17.00251148]
[1752542125778,1e-08,2987.5,2987.4,26.84698005]
[1752542126309,1e-08,2987.9,2987.8,3.89694423]
[1752542126509,1e-08,2988.0,2987.9,13.89683222]
[1752542126719,1e-08,2988.0,2987.9,22.30179818]
[1752542126918,1e-08,2988.0,2987.9,23.08809818]
[1752542127924,1e-08,2988.0,2987.9,23.08709818]
[1752542128425,1e-08,2988.0,2987.9,24.35595619]
[1752542129615,1e-08,2988.0,2987.9,19.19995619]
[1752542130084,1e-08,2988.0,2987.9,24.35495619]
[1752542130778,1e-08,2988.0,2987.9,19.19995619]
[1752542131116,1e-08,2988.0,2987.9,24.35495619]
[1752542131282,1e-08,2988.0,2987.9,19.19995619]
[1752542131488,1e-08,2988.0,2987.9,24.35495619]
[1752542133096,1e-08,2988.0,2987.9,29.11495619]
[1752542133721,5.196,2988.9,2987.9,29.11495619]
[1752542133722,5.196,2988.9,2988.5,14.70506028]
[1752542134016,5.196,2988.9,2988.5,21.10276631]
[1752542135403,5.196,2988.9,2988.5,20.29386631]
[1752542135815,5.196,2988.9,2988.5,21.56252396]
[1752542138128,0.041,2988.9,2988.5,21.56252396]
[1752542139694,0.041,2988.9,2988.5,22.37432396]
[1752542140060,0.041,2988.9,2988.5,21.10566631]
[1752542141588,0.041,2988.9,2988.5,20.29386631]
[1752542143135,0.041,2988.9,2988.5,26.23066631]
[1752542143651,0.041,2988.9,2988.5,27.49932379]
[1752542143989,0.041,2988.9,2988.5,27.4993237]
[1752542144607,1e-08,2988.9,2988.8,14.70622441]
[1752542144806,0.001,2989.2,2989.1,3.8954886]
[1752542144987,1e-08,2989.2,2989.1,19.4665886]
[1752542145212,1e-08,2989.9,2989.8,3.89470533]
[1752542145496,1e-08,2989.9,2989.8,14.36528586]
[1752542145810,1e-08,2989.9,2989.8,15.80059162]
[1752542146322,0.001,2990.3,2989.8,15.80059162]
[1752542146323,1e-08,2990.3,2990.2,23.57152647]
[1752542146848,1e-08,2990.3,2990.2,23.73872647]
[1752542147146,1e-08,2990.3,2990.2,26.96223583]
[1752542147914,1e-08,2990.3,2990.2,27.73543583]
[1752542148133,1e-08,2990.3,2990.2,32.88643583]
[1752542148338,0.04,2990.9,2990.8,4.697687]
[1752542148617,0.04,2990.9,2990.8,14.864087]
[1752542148813,0.04,2990.9,2990.8,17.65259246]
[1752542149858,0.04,2990.9,2990.8,16.84849246]
[1752542151344,1e-08,2990.9,2990.8,17.61459246]
[1752542153033,1e-08,2990.9,2990.8,16.84849246]
[1752542155579,1e-08,2990.9,2990.8,17.64089246]
[1752542157920,0.00100001,2990.9,2990.8,17.64089246]
[1752542158422,1e-08,2990.9,2990.8,18.90857383]
[1752542158722,0.28410001,2991.7,2991.6,3.34269287]
[1752542159079,0.28410001,2991.7,2991.6,0.1664]
[1752542159281,3.34285563,2991.5,2990.8,1.26700612]
[1752542159509,3.34285563,2991.5,2990.9,3.343384]
[1752542159690,3.34304018,2991.3,2990.8,1.26700612]
[1752542159892,3.3434752,2990.9,2990.8,1.26700612]
[1752542160094,3.34336107,2991.1,2990.8,1.26700612]
[1752542160293,3.3434752,2990.9,2990.8,1.26700612]
[1752542160545,0.5155,2991.1,2990.8,1.26700612]
[1752542160748,5.155,2990.9,2990.8,1.26700612]
[1752542161053,5.158,2990.9,2990.8,1.26700612]
[1752542161458,8.5014752,2990.9,2990.8,1.26700612]
[1752542161750,9.3318752,2990.9,2990.8,1.26700612]
[1752542162336,5.9884,2990.9,2990.8,1.26700612]
[1752542162937,5.9864,2990.9,2990.8,1.26700612]
[1752542163881,0.8304,2990.9,2990.8,1.26700612]
[1752542164066,5.9874,2990.9,2990.8,1.26700612]
[1752542165081,10.26395317,2990.9,2990.8,1.26700612]
[1752542167435,10.26095317,2990.9,2990.8,1.26700612]
[1752542167639,10.25995317,2990.9,2990.8,1.26700612]
[1752542168180,10.26095317,2990.9,2990.8,1.26700612]
[1752542168383,5.10695317,2990.9,2990.8,1.26700612]
[1752542168677,4.1738752,2990.9,2990.8,1.26700612]
[1752542168878,5.9834,2990.9,2990.8,1.26700612]
[1752542169180,0.8304,2990.9,2990.8,1.26700612]
[1752542169367,6.1498,2990.9,2990.8,1.26700612]
[1752542169763,0.9968,2990.9,2990.8,1.26700612]
[1752542169985,5.9824,2990.9,2990.8,1.26700612]
[1752542170881,10.27509688,2990.9,2990.8,1.26700612]
[1752542172479,5.12309688,2990.9,2990.8,1.26700612]
[1752542172692,10.27509688,2990.9,2990.8,1.26700612]
[1752542174375,10.27309688,2990.9,2990.8,1.26700612]
[1752542175668,5.12309688,2990.9,2990.8,1.26700612]
[1752542175868,10.27309688,2990.9,2990.8,1.26700612]
[1752542176591,5.12309688,2990.9,2990.8,1.26700612]
[1752542176799,10.27309688,2990.9,2990.8,1.26700612]
[1752542177000,5.12309688,2990.9,2990.8,1.26700612]
[1752542177300,9.3238752,2990.9,2990.8,1.26700612]
[1752542179409,5.9804,2990.9,2990.8,1.26900612]
[1752542179594,6.1468,2990.9,2990.8,1.26900612]
[1752542179786,9.4902752,2990.9,2990.8,1.26900612]
[1752542181277,6.1468,2990.9,2990.8,1.26900612]
[1752542182213,9.4902752,2990.9,2990.8,1.26900612]
[1752542183028,10.90060566,2990.9,2990.8,1.26900612]
[1752542183318,20.73420566,2990.9,2990.8,1.26900612]
[1752542183673,3.34423064,2990.3,2989.8,0.002]
[1752542183997,5.9041,2990.2,2989.8,0.002]
[1752542184315,5.15,2990.1,2989.8,0.002]
[1752542184613,5.15,2990.1,2990.0,3.3444816]
[1752542185014,5.15,2990.1,2989.8,0.002]
[1752542186243,5.74041,2990.1,2989.8,0.002]
[1752542186408,4.14133738,2990.0,2989.8,0.002]
[1752542186608,5.15,2989.9,2989.8,0.002]
[1752542187232,8.49459346,2989.9,2989.8,0.002]
[1752542187503,5.15,2989.9,2989.8,0.002]
[1752542188807,9.48275724,2989.9,2989.8,0.002]
[1752542189154,10.27435724,2989.9,2989.8,0.002]
[1752542189508,20.27435724,2989.9,2989.8,0.002]
[1752542189703,16.92976378,2989.9,2989.8,0.002]
[1752542189921,20.27435724,2989.9,2989.8,0.002]
[1752542190709,15.12435724,2989.9,2989.8,0.002]
[1752542191019,20.27435724,2989.9,2989.8,0.002]
[1752542192133,20.82435724,2989.9,2989.8,1e-08]
[1752542192723,15.12435724,2989.9,2989.8,1e-08]
[1752542192923,20.27435724,2989.9,2989.8,1e-08]
[1752542194145,30.50162581,2989.9,2989.8,1e-08]
[1752542194349,29.95162581,2989.9,2989.8,1e-08]
[1752542196153,29.95262581,2989.9,2989.8,1e-08]
[1752542198386,24.80162581,2989.9,2989.8,1e-08]
[1752542198541,20.27635724,2989.9,2989.8,1e-08]
[1752542201983,15.12435724,2989.9,2989.8,1e-08]
[1752542202275,20.27635724,2989.9,2989.8,1e-08]